[Event "*** Titled Tuesday Blitz"]
[Site "Chess.com"]
[Date "2021.03.09"]
[Round "6"]
[White "chessdjw"]
[Black "Grimlock_Glasgow"]
[Result "1-0"]
[WhiteElo "2729"]
[BlackElo "2509"]
[TimeControl "180+1"]
[EndTime "11:10:49 PST"]
[Termination "chessdjw won on time"]

1. e4 {[%clk 0:03:00.9]} 1... e5 {[%clk 0:02:59.8]} 2. Nf3 {[%clk 0:03:01.2]}
2... d5 {[%clk 0:03:00.1]} 3. exd5 {[%clk 0:02:51.7]} 3... Bd6 {[%clk
0:03:00.2]} 4. Nc3 {[%clk 0:02:50.5]} 4... Nf6 {[%clk 0:02:59.5]} 5. d3 {[%clk
0:02:47.2]} 5... h6 {[%clk 0:02:57.6]} 6. g3 {[%clk 0:02:43.4]} 6... O-O {[%clk
0:02:50.7]} 7. Bg2 {[%clk 0:02:43.9]} 7... c6 {[%clk 0:02:51.1]} 8. dxc6 {[%clk
0:02:42.8]} 8... Nxc6 {[%clk 0:02:52]} 9. O-O {[%clk 0:02:41.9]} 9... Bg4 {[%clk
0:02:33.8]} 10. h3 {[%clk 0:02:42]} 10... Bh5 {[%clk 0:02:33.5]} 11. Re1 {[%clk
0:02:42.5]} 11... Re8 {[%clk 0:02:32.6]} 12. Be3 {[%clk 0:02:29.9]} 12... Rc8
{[%clk 0:02:27.6]} 13. Qd2 {[%clk 0:02:26]} 13... a6 {[%clk 0:02:09.8]} 14. a3
{[%clk 0:02:23]} 14... Qd7 {[%clk 0:01:55.5]} 15. Nh4 {[%clk 0:02:13.4]} 15...
Nd4 {[%clk 0:01:47.1]} 16. Rac1 {[%clk 0:01:47.9]} 16... Bb8 {[%clk 0:01:28]}
17. Ne4 {[%clk 0:01:04.9]} 17... Nd5 {[%clk 0:01:17.1]} 18. Bxh6 {[%clk
0:00:49.2]} 18... f5 {[%clk 0:00:57.9]} 19. Qg5 {[%clk 0:00:48.5]} 19... fxe4
{[%clk 0:00:56.5]} 20. Qxh5 {[%clk 0:00:39]} 20... gxh6 {[%clk 0:00:54.2]} 21.
Bxe4 {[%clk 0:00:27.5]} 21... Nf6 {[%clk 0:00:21.1]} 22. Qxh6 {[%clk 0:00:27.7]}
22... Qg7 {[%clk 0:00:21]} 23. Qxg7+ {[%clk 0:00:27.5]} 23... Kxg7 {[%clk
0:00:20.7]} 24. Bxb7 {[%clk 0:00:20.6]} 24... Rxc2 {[%clk 0:00:19.3]} 25. Nf5+
{[%clk 0:00:18.8]} 25... Kf8 {[%clk 0:00:16]} 26. Nxd4 {[%clk 0:00:15.4]} 26...
Rxc1 {[%clk 0:00:15.5]} 27. Rxc1 {[%clk 0:00:16.3]} 27... exd4 {[%clk
0:00:15.1]} 28. Bxa6 {[%clk 0:00:15.9]} 28... Bd6 {[%clk 0:00:08.1]} 29. Rc6
{[%clk 0:00:14.7]} 29... Ke7 {[%clk 0:00:07.2]} 30. Bc4 {[%clk 0:00:14.8]} 30...
Rb8 {[%clk 0:00:06.5]} 31. b4 {[%clk 0:00:14.4]} 31... Nd7 {[%clk 0:00:06.4]}
32. Ra6 {[%clk 0:00:12.8]} 32... Ne5 {[%clk 0:00:05.9]} 33. Ra7+ {[%clk
0:00:12.3]} 33... Kf6 {[%clk 0:00:05.6]} 34. Ba6 {[%clk 0:00:12.6]} 34... Re8
{[%clk 0:00:01.8]} 35. Kg2 {[%clk 0:00:12.9]} 35... Ng6 {[%clk 0:00:01.1]} 36.
Rd7 {[%clk 0:00:11.9]} 1-0

[Event "*** Titled Tuesday Blitz"]
[Site "Chess.com"]
[Date "2021.03.09"]
[Round "6"]
[White "Sanyura"]
[Black "Onischuk_V"]
[Result "0-1"]
[WhiteElo "2620"]
[BlackElo "2832"]
[TimeControl "180+1"]
[EndTime "11:10:50 PST"]
[Termination "Onischuk_V won on time"]

1. e4 {[%clk 0:02:54.3]} 1... d6 {[%clk 0:03:00.1]} 2. d4 {[%clk 0:02:53.8]}
2... Nf6 {[%clk 0:03:00.6]} 3. Bd3 {[%clk 0:02:53.8]} 3... e5 {[%clk 0:02:59.4]}
4. c3 {[%clk 0:02:54.1]} 4... Nc6 {[%clk 0:02:58.5]} 5. Nf3 {[%clk 0:02:53.6]}
5... g6 {[%clk 0:02:57.4]} 6. O-O {[%clk 0:02:53.1]} 6... Bg7 {[%clk 0:02:58]}
7. Bg5 {[%clk 0:02:50.8]} 7... h6 {[%clk 0:02:56.2]} 8. Bh4 {[%clk 0:02:50.7]}
8... O-O {[%clk 0:02:56.4]} 9. Na3 {[%clk 0:02:43.4]} 9... exd4 {[%clk
0:02:52.1]} 10. cxd4 {[%clk 0:02:42.4]} 10... g5 {[%clk 0:02:51.4]} 11. Bg3
{[%clk 0:02:42.1]} 11... Nh5 {[%clk 0:02:47.9]} 12. Nc2 {[%clk 0:02:37.9]} 12...
Bg4 {[%clk 0:02:42]} 13. Be2 {[%clk 0:01:32.1]} 13... Nxg3 {[%clk 0:02:34.4]}
14. hxg3 {[%clk 0:01:29.5]} 14... Qe7 {[%clk 0:02:24.6]} 15. d5 {[%clk
0:01:13.7]} 15... Bxf3 {[%clk 0:02:19]} 16. gxf3 {[%clk 0:01:09]} 16... Ne5
{[%clk 0:02:13]} 17. Kg2 {[%clk 0:01:08.1]} 17... Ng6 {[%clk 0:02:06.5]} 18. Rh1
{[%clk 0:01:01.9]} 18... Bxb2 {[%clk 0:01:54.6]} 19. Rb1 {[%clk 0:00:58.7]}
19... Bg7 {[%clk 0:01:54.3]} 20. Rxb7 {[%clk 0:00:54.4]} 20... Rfb8 {[%clk
0:01:53.9]} 21. Rxb8+ {[%clk 0:00:53]} 21... Rxb8 {[%clk 0:01:53.6]} 22. Ne3
{[%clk 0:00:53.6]} 22... Rb2 {[%clk 0:01:51.8]} 23. Nf5 {[%clk 0:00:50.1]} 23...
Qf6 {[%clk 0:01:51.8]} 24. Bc4 {[%clk 0:00:43.6]} 24... Ne7 {[%clk 0:01:49.6]}
25. Ne3 {[%clk 0:00:31.4]} 25... Qd4 {[%clk 0:01:49.2]} 26. Qc1 {[%clk
0:00:25.4]} 26... Ng6 {[%clk 0:01:28.8]} 27. Bb3 {[%clk 0:00:25.1]} 27... Ne5
{[%clk 0:01:26.7]} 28. Rd1 {[%clk 0:00:23.1]} 28... Nd3 {[%clk 0:01:23.3]} 29.
Rxd3 {[%clk 0:00:21.9]} 29... Qxd3 {[%clk 0:01:23.2]} 30. Nf5 {[%clk 0:00:20.9]}
30... Qc3 {[%clk 0:01:14.7]} 31. Qf1 {[%clk 0:00:17.1]} 31... Bd4 {[%clk
0:01:07.2]} 32. Qb5 {[%clk 0:00:05.3]} 32... Rxf2+ {[%clk 0:00:51.8]} 33. Kh3
{[%clk 0:00:05.2]} 33... Bg7 {[%clk 0:00:40.5]} 34. Qe8+ {[%clk 0:00:05.2]}
34... Kh7 {[%clk 0:00:41.1]} 35. Ne7 {[%clk 0:00:03]} 35... h5 {[%clk
0:00:25.5]} 36. Qg8+ {[%clk 0:00:02.2]} 36... Kh6 {[%clk 0:00:25.5]} 37. Qxf7
{[%clk 0:00:03.1]} 37... g4+ {[%clk 0:00:22.3]} 38. fxg4 {[%clk 0:00:02.2]}
38... Rxf7 {[%clk 0:00:21.7]} 0-1

[Event "*** Titled Tuesday Blitz"]
[Site "Chess.com"]
[Date "2021.03.09"]
[Round "6"]
[White "queen_iryna"]
[Black "zacachess"]
[Result "0-1"]
[WhiteElo "2349"]
[BlackElo "2488"]
[TimeControl "180+1"]
[EndTime "11:10:52 PST"]
[Termination "zacachess won by checkmate"]

1. e4 {[%clk 0:03:00.9]} 1... c5 {[%clk 0:02:59.2]} 2. Nf3 {[%clk 0:03:00.7]}
2... d6 {[%clk 0:02:59.3]} 3. Bb5+ {[%clk 0:03:00.3]} 3... Nc6 {[%clk
0:02:58.9]} 4. Bxc6+ {[%clk 0:02:59.2]} 4... bxc6 {[%clk 0:02:58.5]} 5. O-O
{[%clk 0:02:54.4]} 5... e5 {[%clk 0:02:58.5]} 6. c3 {[%clk 0:02:53.7]} 6... f5
{[%clk 0:02:58.4]} 7. d4 {[%clk 0:02:45.5]} 7... fxe4 {[%clk 0:02:10]} 8. Ng5
{[%clk 0:02:44.9]} 8... d5 {[%clk 0:02:10.3]} 9. dxe5 {[%clk 0:02:40.7]} 9...
Be7 {[%clk 0:01:30.9]} 10. f4 {[%clk 0:02:23.5]} 10... Bf5 {[%clk 0:00:45.7]}
11. g4 {[%clk 0:01:52]} 11... Bc8 {[%clk 0:00:45]} 12. Be3 {[%clk 0:01:40.6]}
12... Nh6 {[%clk 0:00:44.4]} 13. h3 {[%clk 0:01:38]} 13... O-O {[%clk 0:00:44]}
14. Na3 {[%clk 0:01:10.1]} 14... Rb8 {[%clk 0:00:26.4]} 15. Rb1 {[%clk
0:01:06.8]} 15... c4 {[%clk 0:00:26]} 16. Bxa7 {[%clk 0:00:58.8]} 16... Ra8
{[%clk 0:00:24.1]} 17. Be3 {[%clk 0:00:56.6]} 17... Bxg5 {[%clk 0:00:22]} 18.
fxg5 {[%clk 0:00:55.9]} 18... Nf7 {[%clk 0:00:21.5]} 19. Qd4 {[%clk 0:00:31.8]}
19... Be6 {[%clk 0:00:18.4]} 20. g6 {[%clk 0:00:27.5]} 20... hxg6 {[%clk
0:00:17.8]} 21. Nc2 {[%clk 0:00:19.6]} 21... Qc7 {[%clk 0:00:17.1]} 22. Bf4
{[%clk 0:00:16.6]} 22... c5 {[%clk 0:00:17.3]} 23. Qf2 {[%clk 0:00:15.5]} 23...
Nxe5 {[%clk 0:00:15.6]} 24. Qg3 {[%clk 0:00:15.6]} 24... Rxf4 {[%clk 0:00:14.2]}
25. Qxf4 {[%clk 0:00:15.7]} 25... Re8 {[%clk 0:00:10.7]} 26. Ne3 {[%clk
0:00:14.9]} 26... Bf7 {[%clk 0:00:07.4]} 27. Qg3 {[%clk 0:00:13.6]} 27... Qe7
{[%clk 0:00:06.5]} 28. Rf4 {[%clk 0:00:11.5]} 28... Nd3 {[%clk 0:00:05.6]} 29.
Rbf1 {[%clk 0:00:09.4]} 29... Nxf4 {[%clk 0:00:04.4]} 30. Qxf4 {[%clk
0:00:10.3]} 30... d4 {[%clk 0:00:04.8]} 31. Nd1 {[%clk 0:00:09.2]} 31... e3
{[%clk 0:00:04.9]} 32. Re1 {[%clk 0:00:08.9]} 32... e2 {[%clk 0:00:04.4]} 33.
Nf2 {[%clk 0:00:08.8]} 33... d3 {[%clk 0:00:04.9]} 34. Qd2 {[%clk 0:00:09]}
34... Bd5 {[%clk 0:00:04.8]} 35. a3 {[%clk 0:00:08.8]} 35... Qd6 {[%clk
0:00:05.2]} 36. a4 {[%clk 0:00:06.5]} 36... Qg3# {[%clk 0:00:05.2]} 0-1

[Event "*** Titled Tuesday Blitz"]
[Site "Chess.com"]
[Date "2021.03.09"]
[Round "6"]
[White "Cherone"]
[Black "sbouchet"]
[Result "1-0"]
[WhiteElo "2472"]
[BlackElo "2327"]
[TimeControl "180+1"]
[EndTime "11:10:52 PST"]
[Termination "Cherone won on time"]

1. d4 {[%clk 0:03:00.9]} 1... Nf6 {[%clk 0:02:58.6]} 2. Nf3 {[%clk 0:03:00.8]}
2... e6 {[%clk 0:02:57.3]} 3. Bg5 {[%clk 0:03:00.2]} 3... h6 {[%clk 0:02:56.2]}
4. Bxf6 {[%clk 0:02:59.8]} 4... Qxf6 {[%clk 0:02:56.8]} 5. e4 {[%clk 0:02:59.9]}
5... d6 {[%clk 0:02:55.1]} 6. Nc3 {[%clk 0:02:59.9]} 6... Qd8 {[%clk 0:02:45.2]}
7. Bd3 {[%clk 0:02:59.2]} 7... Be7 {[%clk 0:02:44.4]} 8. O-O {[%clk 0:02:58.9]}
8... Nd7 {[%clk 0:02:44.2]} 9. Qe2 {[%clk 0:02:58.5]} 9... e5 {[%clk 0:02:39]}
10. a4 {[%clk 0:02:53]} 10... c6 {[%clk 0:02:35.2]} 11. a5 {[%clk 0:02:51.2]}
11... Qc7 {[%clk 0:02:32.2]} 12. a6 {[%clk 0:02:34.9]} 12... b5 {[%clk
0:02:30.7]} 13. d5 {[%clk 0:02:34.9]} 13... cxd5 {[%clk 0:01:51]} 14. Nxd5
{[%clk 0:02:32.7]} 14... Qd8 {[%clk 0:01:48.9]} 15. Bxb5 {[%clk 0:02:30.4]}
15... O-O {[%clk 0:01:46.3]} 16. Rfd1 {[%clk 0:02:11]} 16... Nc5 {[%clk
0:01:15.3]} 17. b4 {[%clk 0:01:58]} 17... Ne6 {[%clk 0:01:13.6]} 18. Qd2 {[%clk
0:01:40]} 18... Bg5 {[%clk 0:00:57.4]} 19. Qd3 {[%clk 0:01:36.7]} 19... f5
{[%clk 0:00:39.1]} 20. exf5 {[%clk 0:01:29.1]} 20... Nd4 {[%clk 0:00:31.9]} 21.
Nxd4 {[%clk 0:01:21.5]} 21... exd4 {[%clk 0:00:32.8]} 22. Qxd4 {[%clk 0:01:16]}
22... Kh8 {[%clk 0:00:31.3]} 23. Bd3 {[%clk 0:01:14.2]} 23... Bxf5 {[%clk
0:00:28.8]} 24. Bxf5 {[%clk 0:01:13.6]} 24... Rxf5 {[%clk 0:00:29.7]} 25. g3
{[%clk 0:01:05.1]} 25... Qd7 {[%clk 0:00:21]} 26. h4 {[%clk 0:01:01.3]} 26...
Bd8 {[%clk 0:00:17.1]} 27. c4 {[%clk 0:01:01.1]} 27... Qf7 {[%clk 0:00:12.5]}
28. Re1 {[%clk 0:00:55.3]} 28... Bf6 {[%clk 0:00:07.1]} 29. Nxf6 {[%clk
0:00:54.4]} 29... Rxf6 {[%clk 0:00:07.4]} 30. Re2 {[%clk 0:00:53.3]} 30... Rb8
{[%clk 0:00:06.6]} 31. b5 {[%clk 0:00:52.9]} 31... Qc7 {[%clk 0:00:06]} 32. Rae1
{[%clk 0:00:51.1]} 32... Qb6 {[%clk 0:00:01.7]} 33. Qxb6 {[%clk 0:00:50.2]}
33... Rxb6 {[%clk 0:00:02.5]} 34. Re7 {[%clk 0:00:49.1]} 34... d5 {[%clk
0:00:02.4]} 35. cxd5 {[%clk 0:00:44.6]} 35... Rxb5 {[%clk 0:00:02.2]} 36. Rxa7
{[%clk 0:00:44.8]} 36... Rxd5 {[%clk 0:00:01.7]} 37. Re8+ {[%clk 0:00:33.5]}
37... Kh7 {[%clk 0:00:01.4]} 38. Ree7 {[%clk 0:00:34.4]} 38... Rd1+ {[%clk
0:00:01.1]} 39. Kg2 {[%clk 0:00:34.4]} 39... Rg6 {[%clk 0:00:01.3]} 40. Rab7
{[%clk 0:00:30.9]} 40... Ra1 {[%clk 0:00:01.6]} 41. a7 {[%clk 0:00:30.8]} 41...
Kh8 {[%clk 0:00:01]} 42. Rb8+ {[%clk 0:00:23.4]} 1-0

[Event "*** Titled Tuesday Blitz"]
[Site "Chess.com"]
[Date "2021.03.09"]
[Round "6"]
[White "Fy_Rakotomaharo"]
[Black "S-Fazulyanov"]
[Result "1-0"]
[WhiteElo "2713"]
[BlackElo "2535"]
[TimeControl "180+1"]
[EndTime "11:10:53 PST"]
[Termination "Fy_Rakotomaharo won by resignation"]

1. Nf3 {[%clk 0:03:00.9]} 1... d5 {[%clk 0:03:00]} 2. e3 {[%clk 0:02:59.3]} 2...
Nf6 {[%clk 0:02:59.1]} 3. c4 {[%clk 0:02:59]} 3... c6 {[%clk 0:02:56.5]} 4. Nc3
{[%clk 0:02:58.1]} 4... Bf5 {[%clk 0:02:54.2]} 5. cxd5 {[%clk 0:02:44]} 5...
cxd5 {[%clk 0:02:53.7]} 6. Qb3 {[%clk 0:02:41.6]} 6... b6 {[%clk 0:02:44.4]} 7.
Bb5+ {[%clk 0:02:34.2]} 7... Bd7 {[%clk 0:02:41.5]} 8. Nxd5 {[%clk 0:02:30.3]}
8... Nxd5 {[%clk 0:02:28.7]} 9. Qxd5 {[%clk 0:02:29.2]} 9... Bxb5 {[%clk
0:02:28.8]} 10. Qxb5+ {[%clk 0:02:26.5]} 10... Qd7 {[%clk 0:02:27.1]} 11. a4
{[%clk 0:02:17.8]} 11... e6 {[%clk 0:02:21.6]} 12. O-O {[%clk 0:02:13]} 12...
Bd6 {[%clk 0:02:20.4]} 13. d4 {[%clk 0:02:09.7]} 13... O-O {[%clk 0:02:17.2]}
14. Qxd7 {[%clk 0:01:59.2]} 14... Nxd7 {[%clk 0:02:16.9]} 15. b3 {[%clk
0:01:58.2]} 15... Rfc8 {[%clk 0:02:15.4]} 16. Bd2 {[%clk 0:01:54.6]} 16... Nf6
{[%clk 0:02:12.6]} 17. Rfc1 {[%clk 0:01:54]} 17... Ne4 {[%clk 0:02:09.6]} 18.
Be1 {[%clk 0:01:54]} 18... Kf8 {[%clk 0:02:01.3]} 19. Kf1 {[%clk 0:01:54.2]}
19... Ke7 {[%clk 0:02:01]} 20. Ke2 {[%clk 0:01:54.6]} 20... h6 {[%clk
0:02:00.9]} 21. Kd3 {[%clk 0:01:54.1]} 21... f5 {[%clk 0:02:00]} 22. h3 {[%clk
0:01:50.2]} 22... Kd7 {[%clk 0:01:59]} 23. Nd2 {[%clk 0:01:49.3]} 23... Nf6
{[%clk 0:01:57.8]} 24. Nc4 {[%clk 0:01:47.4]} 24... Bc7 {[%clk 0:01:57]} 25. f3
{[%clk 0:01:45.9]} 25... Nd5 {[%clk 0:01:50.7]} 26. Bd2 {[%clk 0:01:43.8]} 26...
a6 {[%clk 0:01:42.7]} 27. e4 {[%clk 0:01:42.1]} 27... Nf6 {[%clk 0:01:42.6]} 28.
Rc2 {[%clk 0:01:18.6]} 28... b5 {[%clk 0:01:36.2]} 29. Ne3 {[%clk 0:01:18.4]}
29... fxe4+ {[%clk 0:01:29.3]} 30. fxe4 {[%clk 0:01:18.3]} 30... Bf4 {[%clk
0:01:28.1]} 31. Rxc8 {[%clk 0:01:14.9]} 31... Rxc8 {[%clk 0:01:26.5]} 32. axb5
{[%clk 0:01:15.2]} 32... axb5 {[%clk 0:01:27.4]} 33. Ra5 {[%clk 0:01:10.7]}
33... Kc6 {[%clk 0:01:05.9]} 34. Ra6+ {[%clk 0:01:00]} 34... Kd7 {[%clk
0:01:05.8]} 35. Ba5 {[%clk 0:00:51]} 35... g5 {[%clk 0:00:39.2]} 36. e5 {[%clk
0:00:39.7]} 36... Nh5 {[%clk 0:00:18.6]} 37. Rd6+ {[%clk 0:00:31]} 37... Ke7
{[%clk 0:00:18.6]} 38. Bb4 {[%clk 0:00:31]} 38... Kf7 {[%clk 0:00:18.6]} 39. Rb6
{[%clk 0:00:31.2]} 39... Bxe3 {[%clk 0:00:18.5]} 40. Kxe3 {[%clk 0:00:30.6]}
40... Rc2 {[%clk 0:00:19.2]} 41. Rb7+ {[%clk 0:00:19.4]} 41... Kg6 {[%clk
0:00:19.1]} 42. g4 {[%clk 0:00:19.9]} 42... Nf4 {[%clk 0:00:18.3]} 43. Bf8
{[%clk 0:00:20.5]} 43... h5 {[%clk 0:00:17.7]} 44. Rg7+ {[%clk 0:00:19.8]} 44...
Kh6 {[%clk 0:00:18.3]} 45. Rc7+ {[%clk 0:00:19.8]} 45... Kg6 {[%clk 0:00:17.9]}
46. Rxc2 {[%clk 0:00:19.9]} 46... hxg4 {[%clk 0:00:18.8]} 47. hxg4 {[%clk
0:00:20]} 47... Nd5+ {[%clk 0:00:19.7]} 48. Kf3 {[%clk 0:00:19.9]} 1-0

[Event "*** Titled Tuesday Blitz"]
[Site "Chess.com"]
[Date "2021.03.09"]
[Round "6"]
[White "malakismayil"]
[Black "OMGCovid-19"]
[Result "1-0"]
[WhiteElo "2281"]
[BlackElo "2079"]
[TimeControl "180+1"]
[EndTime "11:10:53 PST"]
[Termination "malakismayil won by resignation"]

1. e4 {[%clk 0:03:00.9]} 1... e6 {[%clk 0:02:56]} 2. d4 {[%clk 0:03:00.1]} 2...
d5 {[%clk 0:02:56.9]} 3. Nd2 {[%clk 0:03:00]} 3... Nf6 {[%clk 0:02:56.2]} 4. e5
{[%clk 0:03:00]} 4... Nfd7 {[%clk 0:02:56.8]} 5. Bd3 {[%clk 0:03:00.2]} 5... c5
{[%clk 0:02:57]} 6. c3 {[%clk 0:03:00.6]} 6... Nc6 {[%clk 0:02:57]} 7. Ne2
{[%clk 0:02:59.9]} 7... cxd4 {[%clk 0:02:57]} 8. cxd4 {[%clk 0:03:00.7]} 8... f6
{[%clk 0:02:57.5]} 9. exf6 {[%clk 0:03:01.5]} 9... Nxf6 {[%clk 0:02:57.7]} 10.
Nf3 {[%clk 0:03:02.1]} 10... Bd6 {[%clk 0:02:58.1]} 11. Bf4 {[%clk 0:02:59.4]}
11... Qc7 {[%clk 0:02:55.5]} 12. Bxd6 {[%clk 0:02:55.4]} 12... Qxd6 {[%clk
0:02:56.4]} 13. O-O {[%clk 0:02:49.6]} 13... O-O {[%clk 0:02:56.1]} 14. Ng3
{[%clk 0:02:47.1]} 14... Bd7 {[%clk 0:02:37.6]} 15. Re1 {[%clk 0:02:42.2]} 15...
Be8 {[%clk 0:02:26.4]} 16. Ne5 {[%clk 0:02:35.2]} 16... Qb4 {[%clk 0:02:03.6]}
17. Nxc6 {[%clk 0:02:23.2]} 17... bxc6 {[%clk 0:02:03.3]} 18. Rxe6 {[%clk
0:02:20.2]} 18... Qxb2 {[%clk 0:01:54.1]} 19. Re2 {[%clk 0:02:10.6]} 19... Qb6
{[%clk 0:01:48.7]} 20. Rb1 {[%clk 0:02:07.2]} 20... Qc7 {[%clk 0:01:36.4]} 21.
Qc2 {[%clk 0:01:59.4]} 21... Bd7 {[%clk 0:01:20.1]} 22. Rbe1 {[%clk 0:01:49.9]}
22... Rae8 {[%clk 0:01:19.7]} 23. Qc5 {[%clk 0:01:38.1]} 23... Qf4 {[%clk
0:00:48.1]} 24. Rxe8 {[%clk 0:01:19.7]} 24... Rxe8 {[%clk 0:00:30]} 25. Rxe8+
{[%clk 0:01:16.8]} 25... Bxe8 {[%clk 0:00:29.9]} 26. h3 {[%clk 0:01:11.4]} 26...
Qd2 {[%clk 0:00:18.8]} 27. Qc2 {[%clk 0:01:05.7]} 27... Qxc2 {[%clk 0:00:18.1]}
28. Bxc2 {[%clk 0:01:06.6]} 28... Bd7 {[%clk 0:00:17.2]} 29. Kf1 {[%clk
0:01:03.7]} 29... Kf7 {[%clk 0:00:17.2]} 30. Ke2 {[%clk 0:01:03.9]} 30... h6
{[%clk 0:00:17.3]} 31. Kd2 {[%clk 0:01:01.5]} 31... Ke7 {[%clk 0:00:17.4]} 32.
Kc3 {[%clk 0:01:01.6]} 32... Kd6 {[%clk 0:00:17.9]} 33. Kb4 {[%clk 0:01:00.2]}
33... Be8 {[%clk 0:00:14.9]} 34. Nf5+ {[%clk 0:00:58]} 34... Kc7 {[%clk
0:00:13.5]} 35. Nxg7 {[%clk 0:00:57.1]} 35... Bf7 {[%clk 0:00:11.5]} 36. Nf5
{[%clk 0:00:54.4]} 36... h5 {[%clk 0:00:10.4]} 37. a4 {[%clk 0:00:52.7]} 37...
Ne4 {[%clk 0:00:10.3]} 38. Bxe4 {[%clk 0:00:51]} 38... dxe4 {[%clk 0:00:11.2]}
39. Ng3 {[%clk 0:00:51.3]} 39... Bg6 {[%clk 0:00:08.7]} 40. Ne2 {[%clk
0:00:49.5]} 40... Kd6 {[%clk 0:00:08.3]} 41. Nf4 {[%clk 0:00:49.4]} 41... Bh7
{[%clk 0:00:07.4]} 42. Nxh5 {[%clk 0:00:46.4]} 42... Ke6 {[%clk 0:00:07.1]} 43.
Kc5 {[%clk 0:00:45.6]} 43... Kf5 {[%clk 0:00:06.9]} 44. Kxc6 {[%clk 0:00:42.4]}
44... Kg5 {[%clk 0:00:07]} 45. Ng3 {[%clk 0:00:42]} 45... Kf4 {[%clk 0:00:07]}
46. Ne2+ {[%clk 0:00:41.2]} 46... Kf5 {[%clk 0:00:05.3]} 47. d5 {[%clk
0:00:39.9]} 47... Bg6 {[%clk 0:00:03.2]} 48. d6 {[%clk 0:00:39.7]} 48... Be8+
{[%clk 0:00:03.7]} 49. d7 {[%clk 0:00:40]} 1-0

[Event "*** Titled Tuesday Blitz"]
[Site "Chess.com"]
[Date "2021.03.09"]
[Round "6"]
[White "akhairat"]
[Black "SkippingLaptop"]
[Result "0-1"]
[WhiteElo "2278"]
[BlackElo "2101"]
[TimeControl "180+1"]
[EndTime "11:10:54 PST"]
[Termination "SkippingLaptop won by resignation"]

1. e4 {[%clk 0:02:59.5]} 1... c5 {[%clk 0:02:59.4]} 2. Nf3 {[%clk 0:02:58.4]}
2... Nc6 {[%clk 0:02:59.9]} 3. d4 {[%clk 0:02:59]} 3... cxd4 {[%clk 0:03:00.8]}
4. Nxd4 {[%clk 0:02:59.7]} 4... Nf6 {[%clk 0:03:01.3]} 5. Nc3 {[%clk 0:02:59.9]}
5... e5 {[%clk 0:03:01.8]} 6. Ndb5 {[%clk 0:03:00.2]} 6... d6 {[%clk 0:03:02.1]}
7. Bg5 {[%clk 0:03:00.4]} 7... a6 {[%clk 0:03:02.6]} 8. Na3 {[%clk 0:03:00.8]}
8... b5 {[%clk 0:03:03.3]} 9. Nd5 {[%clk 0:03:01.2]} 9... Be7 {[%clk 0:03:03.8]}
10. Nxe7 {[%clk 0:03:01.7]} 10... Qxe7 {[%clk 0:03:02.7]} 11. c4 {[%clk
0:03:01.6]} 11... b4 {[%clk 0:02:53.2]} 12. Nc2 {[%clk 0:02:05.3]} 12... h6
{[%clk 0:02:51.1]} 13. Bxf6 {[%clk 0:01:59.1]} 13... Qxf6 {[%clk 0:02:52]} 14.
Nxb4 {[%clk 0:01:59.1]} 14... Nxb4 {[%clk 0:02:50.6]} 15. Qa4+ {[%clk
0:01:59.2]} 15... Bd7 {[%clk 0:02:50.1]} 16. Qxb4 {[%clk 0:01:57.4]} 16... O-O
{[%clk 0:02:50.4]} 17. Bd3 {[%clk 0:01:53.7]} 17... Rab8 {[%clk 0:02:44.4]} 18.
Qc3 {[%clk 0:01:52.8]} 18... Qg6 {[%clk 0:02:37]} 19. g3 {[%clk 0:01:40.7]}
19... Bc6 {[%clk 0:02:33.7]} 20. f3 {[%clk 0:01:33.8]} 20... Qh5 {[%clk
0:02:23.6]} 21. O-O {[%clk 0:01:33.1]} 21... f5 {[%clk 0:02:19.9]} 22. b3 {[%clk
0:01:27.9]} 22... f4 {[%clk 0:02:06.3]} 23. gxf4 {[%clk 0:00:57.1]} 23... Rxf4
{[%clk 0:02:04.2]} 24. Be2 {[%clk 0:00:53.5]} 24... Rbf8 {[%clk 0:01:55.7]} 25.
Qd3 {[%clk 0:00:48.4]} 25... R8f6 {[%clk 0:01:53.1]} 26. Kh1 {[%clk 0:00:47.2]}
26... Qh4 {[%clk 0:01:45.3]} 27. Rg1 {[%clk 0:00:45]} 27... Rxe4 {[%clk
0:01:43.2]} 28. Rg2 {[%clk 0:00:31]} 28... Rxe2 {[%clk 0:01:36.6]} 29. Qxe2
{[%clk 0:00:31.8]} 29... Bxf3 {[%clk 0:01:35.8]} 30. Qd2 {[%clk 0:00:25.6]}
30... Qe4 {[%clk 0:01:29.4]} 31. Rg1 {[%clk 0:00:23.8]} 31... h5 {[%clk
0:01:28.5]} 32. h3 {[%clk 0:00:21.4]} 32... Rg6 {[%clk 0:01:22.9]} 33. Kh2
{[%clk 0:00:20.2]} 33... Bxg2 {[%clk 0:01:22.4]} 34. Rxg2 {[%clk 0:00:21.1]}
34... Rxg2+ {[%clk 0:01:17.9]} 35. Qxg2 {[%clk 0:00:22]} 35... Qf4+ {[%clk
0:01:10.5]} 36. Qg3 {[%clk 0:00:20.6]} 36... h4 {[%clk 0:01:05.9]} 37. Qxf4
{[%clk 0:00:20.1]} 37... exf4 {[%clk 0:01:05.9]} 38. Kg2 {[%clk 0:00:20.6]}
38... Kf7 {[%clk 0:01:04.4]} 39. Kf3 {[%clk 0:00:21.4]} 39... g5 {[%clk
0:01:03.2]} 40. b4 {[%clk 0:00:20.1]} 40... Ke6 {[%clk 0:01:02.5]} 41. b5 {[%clk
0:00:20.2]} 41... axb5 {[%clk 0:01:02.2]} 42. cxb5 {[%clk 0:00:21.1]} 42... Kd5
{[%clk 0:01:01.7]} 43. a4 {[%clk 0:00:20.5]} 43... Kc5 {[%clk 0:01:01.6]} 44.
Ke4 {[%clk 0:00:19.9]} 44... d5+ {[%clk 0:01:01.4]} 45. Kd3 {[%clk 0:00:16.2]}
45... g4 {[%clk 0:00:56.6]} 46. hxg4 {[%clk 0:00:16]} 46... h3 {[%clk
0:00:56.6]} 47. g5 {[%clk 0:00:16.9]} 47... h2 {[%clk 0:00:56.8]} 48. g6 {[%clk
0:00:17.8]} 48... h1=Q {[%clk 0:00:55.8]} 49. g7 {[%clk 0:00:18.3]} 49... Qh7+
{[%clk 0:00:55.6]} 0-1